Workbook

Sheet Anleitung
B2: Die einheitliche Massenformel nach Burkhard Heim 1989 und 1982 (1978)
A5: Diese Umsetzung als Excel-Spreadsheet demonstriert die Einfachheit der Heimschen Massenformel.
A6: Enthalten ist die Massenformel im Stand von 1989 und von 1982 mit allen Formeln und allen Zwischenergebnissen.
A8: Als numerische Eingangsgrößen gehen lediglich ein:
A9: - | B9: µ0 Induktionskonstante, e0 Influenzkonstante
B10: oder c Lichtgeschwindigkeit, Rg Vakuumwellenwiderstand
A11: - | B11: gamma Newtonsche Gravitationskonstante
A12: - | B12: hq Plancksches Wirkungsquant
A13: - | B13: die Naturkonstanten Pi und ebn (Basis des natürlichen Logarithmus)
A15: Hinweis
A16: Die rechnerische Genauigkeit von Excel ist begrenzt.
A19: Anleitung
A20: 0. | B20: In die weißen umrandeten Felder können eigene Werte eingegeben werden.
C21: (Wert)
A23: 1. | B23: Im Blatt [Konstante] wählt man die empirischen Werte der Naturkonstanten aus.
B24: Daraus werden automatisch einige abgeleitete Naturkonstanten berechnet und numerisch angezeigt.
B25: Die physikalischen Naturkonstanten dienen der abschließenden Skalierung auf unser Maßsystem.
A27: 2. | B27: Im Blatt [Elementarteilchen] wird die Massenberechnung durchgeführt.
B28: Auswählen lässt sich das Teilchen anhand seines Quantenzahlensets.
B29: Außerdem können die Vorgaben für den einfließenden Wert der Feinstrukturkonstante,
B30: der Drehsinn in der Zeit (Teilchen/Antiteilchen) und die gewünschte Nummer der Resonanz eingegeben werden.
B32: Alle auswählbaren Eingangswerte sind im Arbeitsblatt [Tabellen] gespeichert und dort einsehbar.
B33: Die Zwischenwerte der Koeffizientenmatrix von 1982 wurden der Übersichtlichkeit halber ins Blatt [Koeffizientenmatrix]
B34: ausgelagert. Diese Koeffizienten werden nur in der Massenformel von 1982 verwendet.
A36: 3. | B36: Man kann nun beobachten, wie sich die Innenstrukturen verschiedener Teilchen numerisch unterscheiden,
B37: und wie sie sich bei Anregung ändern.
B38: Wenn sich die Formeln von 1989 von den Formeln 1982 unterscheiden, sind nebeneinander beide Formeln
B39: programmiert worden, und der Unterschied des Wertes wird zusätzlich in % angezeigt.
A41: Der Rechnungsweg wird völlig transparent dargestellt.
A42: Klicke auf ein Zahlenfeld, um die dahinter arbeitende Formel zu sehen.
A43: In der Statuszeile oben wird dann die gesamte Formel angezeigt.
A44: Im Adressfeld links davon steht der Zellname, der der hier berechneten Größe zugewiesen ist.
A46: F: Ich möchte die im Massenrechner programmierten Formeln weiter verwenden. Wie kann ich sie speichern?
A47: Excel kann die Formeln in seinen Datenblättern nur über den Umweg eines Makros speichern.
A48: Drücke [Alt +F11] oder öffne den Visual-Basic-Editor über Extras > Makro > Visual Basic Editor.
A49: Öffen im Editor unter "Module" das Module1.
A50: Wenn nötig passe den Pfad an, unter dem die Formeln gespeichert werden sollen.
B51: Const Dateiname = "d:\temp\formeln.txt"
A52: Wenn nötig passe den Namen des gewünschten Arbeitsblattes an.
B53: For Each Zelle In Sheets("Tabelle1")
A54: Drücke nun auf "Abspielen".
A57: F: Wie kann ich den Blattschutz aufheben?
A58: Freischalten der Blätter über Extras > Schutz > Blattschutz aufheben mit dem Passwort "heim".
B60: Um die Herleitung und Bedeutung der einzelnen Zahlenwerte zu verstehen, sollte unbedingt
B61: ergänzende Literatur studiert werden!
A63: Literaturquellen
A64: [1] | B64: Skript zur Heimschen Massenformel von 1982 (www.heim-theory.com) (berichtigte Version)
B65: Achtung: Die Version von 2003 enthält in einigen Formeln Satzfehler.
A66: [2] | B66: FORTRAN Quellcode von H.D. Schulz, DESY vom 17.3.1982, bezogen auf Gleichungen
B67: von Burkhard Heim vom 17.9.1978.
A68: [3] | B68: Quellcode in UCSD-Pascal von Burkhard Heim, ca. 1985. (Zum Vergleich herangezogen)
A69: [4] | B69: Burkhard Heim: Elementarstrukturen der Materie, Band 1 und 2
B70: Die Formeln im Stand von 1982 sind in diesen beiden Büchern dokumentiert.
A71: [5] | B71: Burkhard Heim 1989b; Ausgewählte Ergebnisse einer einheitlichen Quantenfeldtheorie der Materie und Graviation
B72: Northeim 1989, Version 0.73 (Massenformel im Stand von 1989 mit Tabellenanhang einiger gerechneter Werte)
A73: [6] | B73: Vorgeschlagene Korrekturen von Javier Mazzone aus [5], Anhang D
A75: Copyright © Olaf Posdzech, 2010, op@engon.de
A76: Protosimplex site: www.engon.de/protosimplex/

Sheet Konstante
B2: 1. Vorgegebene mathematische Konstanten
B4: Bezeichnung | C4: Wert
A5: pi | B5: Kreiszahl | C5: =PI() -> 3.141592654 | E5: pi(0)
A6: ebn | B6: Basis des natürl. Logarithmus | C6: =EXP(1) -> 2.718281828 | E6: exp(1)
B9: 2. Daraus abgeleitete geometrische Naturkonstanten
B11: Geometrische Konstanten
A12: xi | B12: geometrische Konstante (VI) | C12: =(1 + SQRT(5)) / 2 -> 1.618033989 | D12: Formel entspricht dem Goldenen Schnitt
F13: Gleichung
A14: eta | B14: eta Kuerzung (V) | C14: =pi / SQRT(SQRT(4 + pi^4)) -> 0.9899896408 | F14: (2b)
A15: eta11 | B15: eta(1,1) Kürzung (V) | C15: =pi / SQRT(SQRT(5 + pi^4)) -> 0.9875639881 | F15: (7a)
A16: eta12 | B16: eta(1,2) Kürzung (V) | C16: =pi / SQRT(SQRT(6 + pi^4)) -> 0.9851677636 | F16: (7a)
A17: eta22 | B17: eta(2,2) | C17: =pi / SQRT(SQRT(6*2^4 + pi^4)) -> 0.8424238461 | F17: (7a)
A19: theta | B19: theta Kuerzung (V) | C19: =5*eta + 2*SQRT(eta) + 1 -> 7.939912667 | F19: (2a)
A20: theta1,1 | C20: =5*_eta11 + 2*SQRT(_eta11) + 1 -> 7.925345023
A21: theta1,2 | C21: =5*_eta12 + 2*SQRT(_eta12) + 1 -> 7.910951171
A22: theta2,2 | C22: =5*_eta22 + 2*SQRT(_eta22) + 1 -> 7.047792236
C24: Heim 1982 | E24: Heim 1989 | F24: Abweichung in %
A25: alfp | B25: Alpha+ (geometrischer Faktor) | C25: =(1 - 2/3 * xi*eta^2*(1 - SQRT(eta)) ) / (eta^2*eta^(1/3)) - 1 -> 0.01832211508 | E25: =eta^(1/6)*(1-theta*(2*(1-SQRT(eta))/(eta*(1+SQRT(eta))))^2*SQRT(2*eta)) / eta^2 - 1 -> 0.01832212397 | F25: =(alfpn-alfp)/alfpn*100 -> 4.852935366e-05
A26: alfm | B26: Alpha- (geometrischer Faktor) | C26: =(1 - 2/3 * xi*eta^2*(1 - SQRT(eta)) ) / (eta * eta^(1/3)) - 1 -> 0.008128344945 | E26: =eta^(1/6)*(1-theta*(2*(1-SQRT(eta))/(eta*(1+SQRT(eta))))^2*SQRT(2*eta)) / eta - 1 -> 0.008128353747 | F26: =(alfmn-alfm)/alfmn*100 -> 0.0001082949913
B29: Feinstrukturkonstante: | C29: Heim 1982 | E29: Heim 1989b
B30: (re. Seite) | C30: =(9*theta* (1 - (1 - SQRT(_eta11))*(1 - SQRT(_eta12))* (SQRT(_eta11)*SQRT(_eta12)) / ( (1+SQRT(_eta11)) * (1+SQRT(_eta12)) ) )) / (2*pi)^5 -> 0.007297160298 | E30: =(9*theta* (1 - (1+_eta22) /(eta*_eta11*_eta12) * ( (1-SQRT(eta))/(1+SQRT(eta)) )^2 )) / (2*pi)^5 -> 0.007297156116
A31: beta | B31: Beta = Alpha- | C31: =SQRT(1/2*(1 + SQRT(1 - 4*C30^2))) -> 0.999973374 | E31: =SQRT(1/2*(1 + SQRT(1 - 4*E30^2))) -> 0.999973374
A32: alfa | B32: Alpha = Alpha+ | C32: =SQRT(1/2*(1 - SQRT(1 - 4*C30^2))) -> 0.007297354598 | E32: =SQRT(1/2*(1 - SQRT(1 - 4*E30^2))) -> 0.007297350415 | F32: Abweichung in %
B33: 1/Alpha | C33: =1/C32 -> 137.035961 | E33: =1/E32 -> 137.0360395 | F33: =(E33-C33)/E33*100 -> 5.730938602e-05
B34: 1/Beta | C34: =1/C31 -> 1.000026627 | E34: =1/E31 -> 1.000026627 | F34: =(E34-C34)/E34*100 -> -3.05196624e-09
B37: 3. Physikalische Naturkonstanten zur Skalierung auf ein Maßsystem
D39: Die vier Größen µ0,eo, Rg und c
D40: können wechselseitig auseinander berechnet werden.
D42: Alle physikalischen Größen gehen nur im letzten Schritt
D43: als direkte Skalierung des Massenwertes m ein.
B54: Physikalische Eingangsgrößen der Massenformel
B57: Bezeichnung | E57: Wert
A58: s0 | B58: Einheitsstrecke 1m | E58: 1 | F58: [m]
B61: 1. Wählen Sie Werte für c und Rg
E62: Wert
A63: Rg | B63: Wert für Vakuumwellenwiderstand Rg (Tabelle 5) | D63: 6 | E63: =INDEX(Table5,D63,3) -> 376.7303135 | F63: =INDEX(Table5,D63,2) -> CODATA 2014
A64: c | B64: Wert für Lichtgeschwindigkeit c (Tabelle 4) | D64: 1 | E64: =INDEX(Table4,D64,3) -> 299792465.3 | F64: =INDEX(Table4,D64,2) -> Berechnet aus µ0 und e0
B66: Falls diese Werte aus µ0 und e0 berechnet werden sollen, geben Sie diese an:
A67: µ0 | B67: Induktionskonstante | C67: =INDEX(Table10,D67,3) -> 1.256637e-06 | D67: 1 | E67: =INDEX(Table10,D67,2) -> Heim Formel
A68: e0 | B68: Influenzkonstante | C68: =INDEX(Table11,D68,3) -> 8.854187817e-12 | D68: 1 | E68: =INDEX(Table11,D68,2) -> Heim Formel
B69: ergibt
B70: Lichtgeschwindigkeit | E70: =1/SQRT(my0*e0) -> 299792465.3 | F70: [m/s] berechnet aus µ0, e0
B71: Vakuumwellenwiderstand R- | E71: =SQRT(my0/e0) -> 376.7303043 | F71: [Ohm] berechnet aus µ0, e0
B74: 2. Wählen Sie Gamma, hq (Plancksches Wirkungsquant) und FakMeV
E75: Wert
A76: hq | B76: Plancksches Wirkungsquant (Tabelle 7) | D76: 4 | E76: =INDEX(Table7,D76,3) -> 1.0545718e-34 | F76: =INDEX(Table7,D76,2) -> CODATA 2014 | G76: [Ws*s]
A77: gamma | B77: Wert für Gravitationskonstante (Tabelle 3) | D77: 11 | E77: =INDEX(TableGamma,D77,3) -> 6.67408e-11 | F77: =INDEX(TableGamma,D77,2) -> CODATA 2014 | G77: [m^3 / (kg*s^2)]
E78: =INDEX(TableGamma,D77, 4) -> (Beschreibung)
A79: fakMeV | B79: Umrechnungsfaktor (Tabelle 8) | D79: 3 | E79: =INDEX(Table8,D79,3) -> 5.609545e+29 | F79: =INDEX(Table8,D79,2) -> Heim 1989b | G79: [kg] -> [MeV/c^2]
B82: Daraus abgeleitetetes Minimales Massenelement und Elementarladung
A84: eq | B84: Elektr. Elementarladung e+- (Wird für die Masse nicht verwendet) | E84: =3 * SQRT(2*theta*hq / Rg) / (4 * pi^2 ) -> 1.602164749e-19 | F84: [As] berechnet aus Theta, hq, Rg
B85: my Massenelement (VI) | E85: =pi^(1/4) * (3*pi*gamma*hq*s0)^(1/3) * SQRT(_c*hq / (3*gamma)) / (_c*s0) -> 2.258942033e-31 | F85: [kg] berechnet aus Gamma, hq und c
B87: Wählen Sie einen Wert für my aus Tabelle 6 (Festwert oder berechnet). | E87: Wert
A88: amu | B88: my Massenelement (Tabelle 6) oder (VI) | D88: 1 | E88: =INDEX(table6,D88,3) -> 2.258942033e-31 | F88: =INDEX(table6,D88,2) -> Berechnet auf Seite 1

Sheet Elementarteilchen
A1: Berechnung der Masse eines ausgewählten Elementarteilchens
A3: Hinweis: geändert markiert Gleichungen, die sich im Stand von 1989b von der 1982-er Version unterscheiden.
A5: Variable | C5: Name und Bedeutung | F5: Gleichung 1989 | G5: Gleichung 1982 | H5: Wert 1982 | I5: Abweichung
A6: 1989 | B6: 1982
A7: eps | B7: eps | C7: Zeithelizität festlegen (1 = normal, -1 = Antiteilchen) | D7: 1
C8: Wert der Feinstrukturkonstante auswählen (siehe Tabelle2) | D8: 6
C9: gewählt wurde | D9: =INDEX(Table2,D8,2) -> CODATA 2014
C10: Alpha | D10: =INDEX(Table2,D8,3) -> 0.007297352566
C11: Beta | D11: =INDEX(Table2,D8,4) -> 0.9999733726
C12: 1/Alpha | D12: =INDEX(Table2,D8,5) -> 137.0359991
C13: 1/Beta | D13: =INDEX(Table2,D8,6) -> 1.000026628
C16: Teilchen durch Multiplettnummer auswählen (siehe Tabelle 1) | D16: 22 | F16: Formel 1989b: | G16: Formel 1982: | H16: Wert 1982 falls abweichend
C17: Name des Teilchens | D17: =INDEX(Table1,D16,2) -> o-- (1982)
A18: k | B18: k | C18: Konfiguration (1 = Meson, 2 = Baryon) = Baryonenzahl +1 | D18: =INDEX(Table1,D16,3) -> 2
A19: P | B19: P | C19: P = 2 * Isospin, P=0 Singulett, P=1 Doublett, P=2 Triplett … | D19: =INDEX(Table1,D16,4) -> 3
A20: Q | B20: Q | C20: Q = 2 * Raumspin | D20: =INDEX(Table1,D16,5) -> 1
A21: kappa | B21: kappa | C21: Doublettziffer | D21: =INDEX(Table1,D16,6) -> 0
A22: x | B22: x | C22: Komponenten-Nummer des Multipletts = 1 … I | D22: =INDEX(Table1,D16,7) -> 4 | G22: (I - 5)
H23: 1982:
A24: N | B24: N | C24: Resonanzordnung eingeben (0 = Grundzustand, sonst >= 2) | D24: 0 | E24: =D239 -> zugelassen | H24: =IF(fn>temp1,"Dieser Wert ist zu hoch!","") -> 
C25: =IF(N=1,"Der Wert 1 ist nicht erlaubt. Bitte geben Sie einen anderen Wert ein!","") ->  | E25: =C202 -> 
C27: Aus k, P, Q abgeleitete Quantenzahlen
B28: epsp | D28: =eps*COS( pi * Q * (kappa + P..2) ) -> -1 | F28: (17a) | G28: (I - 10) (II-1)
B29: epsq | D29: =eps*COS(pi * Q * (Q*(k-1) + P..2) ) -> 1 | F29: (17b) Korrektur J. M. | G29: (I - 10) (II-1)
A30: cs | B30: cs | C30: Konfigurationstransfer, Strukturdistributor (strangeness) | D30: =2/(k * (1 + kappa)) * (P*epsp + Q*epsq) * (k - 1 + kappa) -> -2 | F30: (17) | G30: (I - 9)
B31: ix | C31: Anzahl der Unterarten (Komponenten) x=1…I eines Isospinmultipletts(kpQ) | D31: =P+1 -> 4 | F31: eingeschränkt (19ff) | G31: (I - 5)
C34: Aus k, P, Q, x abgeleitete Quantenzahlen
A35: qx | B35: qx | C35: Elektrische Ladungsquantenzahl | D35: =((P + 2 - 2*x) * (1 - kappa*Q*(2 - k)) + eps*(k - 1 - (1 + kappa)*Q*(2 - k)) + cs ) /2 -> -2 | F35: (18) | G35: (II)
A36: kq | B36: kq | C36: q = |qx| | D36: =ABS(qx) -> 2 | G36: (II)
C39: Zahlen für den Grundzustand ausrechnen
C41: Invariante metrische Gerüststruktur (festes Grundraster für k = 1 oder k= 2, Baryon/Meson)
C42: (Protosimplexbesetzung)
B43: is | C43: s | D43: =k^2 + 1 -> 5 | H43: 1982: | I43: Differenz in %
A44: q.1 | B44: q.1 | C44: Q1 = Anzahl Strukturentitäten in Zone 1 | D44: =(2*k-(-1)^k) * 2^(is - 2) -> 24 | F44: (6a) geändert | G44: (X - 1) Ergebnis gleich | H44: =3* 2^(is - 2) -> 24 | I44: =(q.1-H44)/q.1*100 -> 0
A45: q.2 | B45: q.2 | C45: Q2 = Anzahl Strukturentitäten in Zone 2 | D45: =2^is - 1 -> 31 | F45: (6b) | G45: (X - 2)
A46: q.3 | B46: q.3 | C46: Q3 = Anzahl Strukturentitäten in Zone 3 | D46: =2^is + 2*(-1)^k -> 34 | F46: (6c) | G46: (X - 3)
A47: q.4 | B47: q.4 | C47: Q4 = Anzahl Strukturentitäten in Zone 4 | D47: =2^(is - 1) - 1 -> 15 | F47: (6d) | G47: (X - 4)
A48: H | B48: - | C48: H = Summer der Qi | D48: =q.1+q.2+q.3+q.4 -> 104 | F48: (12b) | G48: -
A49: B | B49: - | C49: B | D49: =3*H / (k*k*(2*k-1)) -> 26 | F49: (13b) | G49: -
C51: Quantenzahlen N1, N2, N3 (auch abhängig von der Ladungsquantenzahl kq)
C52: Sie drücken den Anstieg der Besetzungen in den Zonen aus.
A54: etaqk | B54: etaqk | C54: Hilfsfunktion eta(kq,k) | D54: =pi / SQRT(SQRT( (4+k)*kq^4 + pi^4)) -> 0.8424238461 | F54: (7a) | G54: (VIII - 4)
A55: eta1k | B55: - | C55: Hilfsfunktion eta(1,k) für N3 | D55: =pi / SQRT(SQRT( (4+k) + pi^4)) -> 0.9851677636 | F55: (7a) | G55: -
A56: etaq1 | B56: - | C56: Hilfsfunktion eta(q,1) für N3 | D56: =pi / SQRT(SQRT( kq^4*5 + pi^4)) -> 0.860807228 | F56: (7a) | G56: -
A57: thetaq1 | B57: - | C57: Hilfsfunktion theta(q,1) für N3 | D57: =5*etaq1 + 2*SQRT(etaq1) + 1 -> 7.159630091 | F57: (7a) | G57: -
A58: u | B58: - | C58: Kürzung | D58: =2*pi*ebn -> 17.07946845 | F58: (8c1) | G58: -
A59: P..2 | B59: P..2 | C59: Binomial (P über 2) | D59: =IF(P<2,0,COMBIN(P,2)) -> 3
A60: P..3 | B60: P..3 | C60: Binomial (P über 3) | D60: =IF(P<3,0,COMBIN(P,3)) -> 1
A61: Q..3 | B61: Q..3 | C61: Binomial (Q über 3) | D61: =IF(Q<3,0,COMBIN(Q,3)) -> 0
C63: Energieportionen pro Struktureinheit in den drei Zonen:
A64: alf1 | B64: alf1 | C64: kubischer Anstieg (Zentralzone), konstant | D64: =(1 + SQRT(etaqk)) / 2 -> 0.9589182515 | F64: (8a) (7a) | G64: (IX - 4)
A65: NN1 | C65: N1 = alf1 | D65: =_alf1 -> 0.9589182515 | F65: (11a) | G65: (IX - 1)
A66: alf2 | B66: alf2 | C66: quadratischer Anstieg (Internzone), konstant | D66: =1/etaqk -> 1.187050918 | F66: (8b) (7a) | G66: (IX - 5)
A67: NN2 | C67: N2 = 2/3 alf2 | D67: =2/3*_alf2 -> 0.7913672788 | F67: (11a) | G67: (IX - 2) | H67: 1982: | I67: Differenz in %
A68: alf3 | B68: alf3o | C68: linearer Anstieg (Mesozone), f(k, Q) | D68: =1/k*ebn^((k-1)* (1-pi*(1-etaqk)/(1+SQRT(etaq1))* (1 -u*etaq1/ thetaq1*(1-alfmn/alfpn)*(1-SQRT(eta))^2))-4/(3*u)*(1-SQRT(eta))^2*(2*3/4*u^2/theta*(1+SQRT(etaq1))/(1-eta)-1)*kq + IF(kq=2,OffsetN3,0)) -> 1.008387856 | E68: ? | F68: (8c) (7a) geändert + Korrektur J. M. | G68: (IX - 6) | H68: =EXP(k-1)/k - kq*(alfa/3*(1+SQRT(etaqk))*(xi/(etaqk^2 ))^(2*k+1)*etaqk^3 + _eta11/(ebn*etaqk)*(2*xi*etaqk)^k*((1-SQRT(etaqk)) / (1+SQRT(etaqk)) )^2) -> 1.003731244 | I68: =(_alf3-H68)/_alf3*100 -> 0.461787757
A69: NN3 | C69: N3 = 2 *alf3 | D69: =2*_alf3 -> 2.016775711 | F69: (11a) | G69: (IX - 3) | H69: =2*alf3o -> 2.007462488 | I69: =(D69-H69)/D69*100 -> 0.461787757
A71: NN4 | C71: N4 | D71: =4*(1+kq*(k-1)) / k -> 6 | F71: (8d) | G71: -
A72: Nk | C72: N(k) = H - Korrekturterm 1 | D72: =q.1+q.2+q.3+q.4 + k*(-1)^k*2^(k*k-1) -> 120 | F72: (8e2) | G72: -
A73: N.k | C73: N'(k) = H - Korrekturterm 2 | D73: =q.1+q.2+q.3+q.4 -2*k -1 -> 99 | F73: (8f1) | G73: -
A74: A.n | C74: Kürzung a | D74: =8*(1-alfmn/alfpn)*(1-3/4*eta) / eta -> 1.157733756 | F74: (8e1) (8c1) | G74: -
A75: NN5 | C75: N5 | D75: =A.n* (1 + k*(k-1)*2^(k*k+3)*Nk *A.n*((1-SQRT(etaqk))/(1+SQRT(etaqk)))^2) -> 76.73188427 | F75: (8e) | G75: -
A76: NN6 | C76: N6 | D76: =4*k/(u*theta) * (SQRT(k)*(k^2-1)*Nk/SQRT(eta1k) * (kq-(1-kq)*N.k/(q.4*SQRT(eta1k))) + (-1)^(k+1))*eta*(1-alfmn/alfpn)*(4*(1-SQRT(eta))/(1+SQRT(eta)))^2*q.4 -> 0.2188262455 | F76: (8f) | G76: -
C78: a1.10 (Teil von a1) | D78: =1+B+ k*(Q^2+1)*Q..3 -> 27
C79: a1.11 (Teil von a1) nur bei kappa=1 | D79: =-kappa*((B-1)*(2-k)-3*(H-2*(1+kq))*(P-Q)+1) -> 0
C80: a1.12 (Teil von a1) nur bei kappa=0 | D80: =-(1-kappa)*((3*(2-kq)*P..2-Q*(3*(P+Q)+kq))*(2-k)+(k*(P+1)*P..2+(1+B/k*(k+P-Q))*(1-P..2)*(1-Q..3)-kq*(1-kq)*Q..3)*(k-1)) -> 82
A81: a..1 | C81: a1 | D81: =a1.10 + a1.11 + a1.12 -> 109 | F81: (13c)
C83: a.20 (Teil von a2) | D83: =B*(1-Q..3*(1-P..3))+6/k -> 29
C84: a.21 (Teil von a2) nur bei kappa=1 | D84: =-kappa*(Q/2*(B-7*k)-(3*kq-1)*(k-1)+1/2*(P-Q)*(4+(B+1)*(1-kq))) -> 0
C85: a.221 (Teil von a.22) | D85: =(P*(B/2+2+kq)-Q*(B/2 +1 -4*(1+4*kq)))*(2-k) -> 0
C86: a.222 (Teil von a.22) nur bei k=2 | D86: =(1/4*(B-2)*(1+3/2*(P-Q))-B/2*(1-kq)-P..2*((1/2*(B+kq-eps*qx)+3*eps*qx)*(2-eps*qx)-1/4*(B+2)*(1-kq)))*(1-Q..3)*(k-1) -> -92
C87: a.223 (Teil von a.22) | D87: =-P..3*(2*(1+eps*qx)+1/2*(2-kq)*(((1-kq)+eps*qx)-kq)-kq/4*(1-kq)*(B-4)-1/4*(B-2)+B/2*(1-kq)) -> 10 | F87: Korrektur J. M.
C88: a.22 (Teil von a2) nur bei kappa=0 | D88: =-(1-kappa)*(a2.221 + a2.222 + a2.223) -> 82
A89: a..2 | C89: a2 | D89: =a2.20 + a2.21 + a2.22 -> 111 | F89: (13d) korrigiert
C91: y1 Teil 1 von y | D91: =kappa*(SQRT(eta)/k*(4*(2-SQRT(eta))-pi*ebn*(1-eta)*SQRT(eta))* (k+ebn*SQRT(eta)*(k-1))+ 5*(1-kq)/(2*k+(-1)^k)*(4*B+P+Q)) -> 0
C92: y20 (Teil von y2) | D92: =(P-1)*(P-2)*(2/k^2*(H+2)+(2-k)/(2*pi)) -> 106
C93: y21 (Teil von y2) | D93: =P..2*(1-Q..3)*(kq*B/2*(B+2*(P-Q))+(P*(P+2)*B+(P+1)^2-kq*(1+eps*qx)*(k*(P^2+1)*(B+2)+1/4*(P^2+P+1))-kq*(1-eps*qx)*(B+P^2+1))*(k-1)) -> 6289.5
C94: y22 (Teil von y2) | D94: =((P-Q)*(H+2)+P*(5*B*(1+kq)*Q+k*(k-1)*(k*(P+Q)^2*(H+3*k+1)*(1-kq)-1/2*(B+6*k))))*(1-P..2)*(1-Q..3) -> 40088 | F94: Korrektur J. M.
C95: y23 (Teil von y2) | D95: =P..3*(2-kq)*Q*(eps*qx*(B+2*Q+1)+kq/(2*k)*(1-eps*qx)*(2*k+1)+(1-kq)*(Q^2+1+2*B)) -> 0
C96: y2 (Teil 2 von y) = y.20 + y.21 + y22 + y.23, nur bei kappa=0 | D96: =(1-kappa)*(y.20 + y.21 + y.22 + y.23) -> 46483.5
A97: y | C97: y = (y.1 + y.2) / (2B) | D97: =1/(2*B)*(y.1 + y.2) -> 893.9134615 | F97: (13e1) korrigiert
A98: a..3 | C98: a3 =f(y) | D98: =4*B*y/(1+y) - 1/(B+4) -> 103.8504543 | F98: (13e)
A100: A | C100: A | D100: =8*g*H / (2-k+8*H*(k-1)) -> 14727.57867 | F100: (12a)
A101: L | C101: L | D101: =(1-kappa)*Q*(2-k) -> 0 | F101: (12c)
A102: x.. | C102: x | D102: =(1 -Q -P..2)*(2-k)+1/(4*B)*(a..1+k^3/(4*H)*(a..2+a..3/(4*B))) -> 1.068786716 | F102: (13a) | H102: 1982: | I102: Differenz in %
A103: g | C103: g Basisanstieg der Resonanzkurve | D103: =q.1^3 + q.2^2 + q.3/k*EXP(k-1) + ebn^(-(2*k-1) /3) - H*(k-1) -> 14727.57867 | F103: (12c) geändert | G103: (XV) | H103: =q.1^3*_alf1 + q.2^2*_alf2 + q.3*alf3o + EXP( (1-2*k)/3 ) -> 14431.33658 | I103: =(g-gkq)/g*100 -> 2.011478566
A104: WN.0 | B104: wgx | C104: W(N=0) (1989) | D104: =A*ebn^(x..)*(1-eta)^L + (P-Q)*(1- P..2)*(1-Q..3) * (1-SQRT(eta))^2*SQRT(2) -> 42884.41826 | F104: (11b) | G104: (XIV … XV) | H104: =wgx -> 21492.24843 | I104: =(WN.0-wgx)/WN.0*100 -> 49.88331588
C106: 1982:
C107: aktiv bei Baryon (k=1) | D107: =(1-Q)*(a.11 - P*(a.12+kappa*kq/etaqk*a.13)-P..2*(a.14 - kq/etaqk*a.15)) + kappa*Q*etaqk*a.16 -> 0 | G107: (XVII)
C108: aktiv bei Meson (k=2) | D108: =(kq-1)*a.21 + (1-P)*a.22 + P..2*(a.23-qx*etaqk/(1+a.24*(1+qx))*a.25)+ kappa*(a.26+kq*etaqk^2*a.31) + Q..3*etaqk*a.32 + P..3*(kq^3*a.33/(3-kq)*(qx-(-1)^kq) + ebn*(P-Q)*eta^((kq-1)*kq/4)/(8-a.66*kq*(kq-1)) * (1-kq/etaqk*(2-kq)*a.34^(1-qx)*a.35)*etaqk/eta^2-a.36) -> 0.4892763614 | G108: (XVIII)
B109: wgxk | C109: wvx(k) Strukturpotenz | D109: =IF(k = 1,_wx1 + 1,1 + _wx2) -> 1.489276361 | G109: (XIX ff)
B110: wgx | C110: Wvx (1982) = g(qk) * wvx | D110: =gkq*wgxk -> 21492.24843 | G110: (XIV … XV)
C113: Hilfsfunktion für Resonanzabstände (abhängig von der Feinstrukturkonstante Alfa)
B115: an | C115: 1982: Substitution an | D115: =P*a.42*(1-kappa*a.43*(1+a.44*(-alfa)^(2-k)*a.45^(k-1))*(1-kappa*Q*a.46*(2-k)) - a.51*(k-1)*(1-kappa)) -> -0.3512408649 | G115: (XXI)
B116: aq | C116: 1982: Substitution aq | D116: =1 - kq*a.52*(1 - 2*kappa*a.53^k)*(1 + qx/6*(3-qx)*(k-1)*(1-kappa)) -> 1.059565394 | G116: (XXII)
A117: C. | C117: C | D117: =pi*(1-SQRT(eta))^2*(1+SQRT(pi)*(k-1)+P/k^3*(3/ebn +kq*(8+etaqk) +4*pi*ebn/SQRT(eta)*(1-kappa)*(1-kq*3*pi*eta/(5*ebn*etaqk)) -2*(k-1)*P..2*(3-P)*(2*ebn*(eta+etaqk) +pi*ebn/(3*SQRT(eta))*eps*qx) +8*pi*ebn/SQRT(eta)*kappa*(k-1)*(ebn/SQRT(eta)-kq/SQRT(ebn)))) -2*ebn*kappa*kq/eta^2*(2-k)*(1-eta)^2 -> 0.0001352476323 | F117: (14b1) geändert + Korrektur J.M. | H117: 1982: | I117: Differenz in %
A118: bg | B118: bgx | C118: b Resonanzraster (Abstand zwischen Resonanzen) | D118: =alfa*theta/8*(P^2+1)*(1/2*(1+SQRT(eta))*(1+_eta11*_eta12*3/4*P..3*(k-1))+(k-1)*(theta12/theta-8*P..2/(P^2+1))) /(2*etaqk^2*SQRT(etaqk)) - C. -> 0.01774960987 | F118: (14b) geändert | G118: (XXIII) | H118: =(a.54*a.55^(k-1)*(1+P*a.56*(1-kappa*a.61*a.62^(1-k)) * (1+kq*a.63*(1+kappa*a.64)))*(1-1/k*(a.65*(kq+k-1))^(2-k)*P..2 *(1-P..3 ))) / (k^P*(1+P+Q+kappa*eta^(2-kq)) ) -> 0.02549932993 | I118: =(bg-bgx)/bg*100 -> -43.66135431
A119: X. | C119: X | D119: =kappa*(4*alfa*(B+k+1)/(1-alfa^2)*(1+5*alfa^2)/(1-5*alfa^2) - 2*(3*alfa/4/pi)^2-kq*(pi/2-1-alfa^2*pi*ebn*(1+SQRT(eta))/(2*theta*(1-6*alfa^2))) ) +1 -> 1 | F119: (14a1) | G119: -
A120: ag | B120: agx | C120: a Resonanzbasis | D120: =(P^2/k*(4-k)/4+(k-1)*(pi/4*P..3-_eta11*_eta12*P..2)) /(X.*SQRT(etaqk)*etaqk^2) -> 0.1790838516 | F120: (14a) geändert | G120: (XX) | H120: =a.41/k * (1 + an*aq) -> 0.1947720176 | I120: =(ag-agx)/ag*100 -> -8.760234865
A121: fn.89 | B121: fn | C121: f(N) (1989) Anregerfunktion | D121: =ag*N /(N + 1) + bg*N -> 0 | F121: (14) geändert | G121: (XXV) | H121: =(1-Q*(2-k)*(1-kappa)) * (agx*N/(N+2) + bgx*SQRT(N*(N-2))) -> 0 | I121: =(D121-fn)/D121*100 -> 
C125: Strukturparameter der Anregungen (abhängig von ag, bg und Resonanzordnung N)
C127: Wähle eine numerische Korrektur für die Integer-Bildung: | F127: OffsetN3: | G127: Offset K: | H127: Kommentar
A128: OffsetK | C128: Korrektur (Tabelle 9) | D128: 2 | F128: =INDEX(Table9,D128,3) -> 0 | G128: =INDEX(Table9,D128,4) -> 0 | H128: =INDEX(Table9,D128,2) -> Keine Korrektur
A129: OffsetN3
A130: deltaN | C130: 1 bei N=0, sonst 0 | D130: =IF(N=0,1,0) -> 1
A131: wn0N | C131: Anregung =WN.0*(1 + fn) | D131: =WN.0*(1+fn.89) -> 42884.41826
H132: 1982:
A133: wn.1 | B133: w.1 | C133: w1 | D133: =WN.0*(1+fn.89) - (k.n-1)^3*_alf1 -> 1770.798226 | F133: Text nach 15a | G133: (XXIX Text) | H133: =wgx * (1 + fn) -> 21492.24843
A134: k.n | B134: k.1 | C134: Kn Protosimplexe gesamt (Zentralzone) (1989: +1) | D134: =INT((wn.0N/_alf1)^(1/3)+OffsetK) + 1 -> 36 | G134: (XXIX Text) | H134: =INT((w.1/_alf1)^(1/3) + 0) -> 28
A135: n.n | B135: n.1 | C135: n1 = K1 - Q1 - 1 angeregte Protosimplexe | D135: =k.n - q.1 - 1 -> 11 | F135: (16a) geändert | G135: (XXIX Text) | H135: =k.1 - q.1 -> 4
A136: wn.2 | B136: w.2 | C136: W2 | D136: =wn.1 - (k.m - 1)^2*_alf2 -> 56.69670033 | G136: (XXX Text) | H136: =w.1 - k.1^3*_alf1 -> 442.0749788
A137: k.m | B137: k.2 | C137: Km Protosimplexe gesamt (Internzone) (1989: +1) | D137: =INT(SQRT(wn.1/_alf2)+OffsetK)+ 1 -> 39 | G137: (XXX Text) | H137: =INT( SQRT(w.2 / _alf2) + 0) -> 19
A138: n.m | B138: n.2 | C138: n2 = K2 - Q2 angeregte Protosimplexe | D138: =k.m - q.2 - 1 -> 7 | F138: (16b) geändert | G138: (XXX Text) | H138: =k.2 - q.2 -> -12
A139: wn.3 | B139: w.3 | C139: W3 | D139: =wn.2 - (k.p - 1)*_alf3 -> 0.226980411 | G139: (XXXI Text) | H139: =w.2 - k.2^2*_alf2 -> 13.54959731
A140: k.p | B140: k.3 | C140: Kp Protosimplexe gesamt (Mesozone) | D140: =INT(wn.2/_alf3+OffsetK) + 1 -> 57 | G140: (XXXI Text) | H140: =INT(w.3 / alf3o + 0) -> 13
A141: n.p | B141: n.3 | C141: n3v = K3v - Q3 angeregte Protosimplexe | D141: =k.p - q.3 - 1 -> 22 | F141: (16c) geändert | G141: (XXXI Text) | H141: =k.3v - q.3 -> -21
C142: Beta | D142: =(2*k-1) / (3*q.4) -> 0.06666666667
B143: w.4 | C143: W4 | G143: (XXXI Text) | H143: =w.3 - k.3v*alf3o -> 0.501091142
A144: k.sigv | B144: k.4v | C144: Ksigv Protosimplexe gesamt (Externzone) | D144: =INT(-LN(wn.3) / (2*k-1) * (3*q.4) + OffsetK) + 1 -> 23 | G144: (XXXI Text) | H144: =INT(IF(w.4<=0, alf3o*k.3v, -LN(w.4) / (2*k-1) * (3*q.4) ) + 0 ) -> 10
A145: n.sigma | B145: n.4v | C145: n4v = K4 - Q4 angeregte Protosimplexe | D145: =k.sigv - q.4 - 1 -> 7 | F145: (16d) geändert | G145: (XXXI Text) | H145: =k.4v - q.4 -> -5
C147: Nur 1982: Korrektur bei verbotenem Term (W4 > 1)
B148: k.3 | C148: K3 = K3v - 1 (Fallunterscheidung (a), (c)) | D148: - | G148: (XXXI Text) | H148: =IF(w.4>1,k.3v - 1, k.3v) -> 13
B149: n.3 | C149: n3 = K3 - Q3 | D149: - | G149: (XXXI Text) | H149: =k.3 - q.3 -> -21
B150: k.4 | C150: K4 (Fallunterscheidung (a), (c)) | D150: - | G150: (XXXI Text) | H150: =INT( IF(w.4>1, k.4v + k.3*alf3o, k.4v) + 0) -> 10 | I150: z.B. bei Proton, N=8; n, N=6
B151: n.4 | C151: n4 = K4 - Q4 | D151: - | G151: (XXXI Text) | H151: =k.4 - q.4 -> -5
G152: =IF(w.4 > 1,"Für dieses N existiert die Resonanzordnung nicht!", "") -> 
C154: Masse berechnen aus der Anzahl der trägheitsbehafteten komplexen Spins (zyklische Kondensationen)
C155: Die Anteile K + G + H (1989: S, G, F) sind Teilmengen der folgenden einfachen Formel:
C156: kgh = 4(alf1*K1^2*(1 + K1)^2/4 + alf2*K2*(2*K2^2 + 3*K2 + 1)/6 + alf3*K3*(1 + K3)/2 + K4)
C158: Massenanteile | H158: 1982: | I158: Differenz in %
A159: mSn | B159: mK | C159: S Massenanteil nur durch die ni der Anregung | D159: =n.n^2*(1+n.n)^2*_NN1 + n.m*(2*n.m^2+3*n.m+1)*_NN2 + n.p*(n.p+1)*_NN3 + 4*n.sigma -> 18421.42864 | F159: (5b) | G159: (IX - 1) | H159: =4*(_alf1*n.1^2*(1+n.1)^2/4 + _alf2*n.2*(2*n.2^2 + 3*n.2 + 1)/6 + _alf3*n.3*(1+n.3)/2 + n.4) -> -1191.977959 | I159: =(mSn-mK)/mSn*100 -> 106.4706054
A160: mGn | B160: mG | C160: G Massenanteil nur durch die Gerüststruktur Qi (Grundzustand) | D160: =q.1^2*(1+q.1)^2*_NN1 + q.2*(2*q.2^2+3*q.2+1)*_NN2 + q.3*(q.3+1)*_NN3 + 4*q.4 -> 397127.8231 | F160: (5a) | G160: (IX - 2) | H160: =4*(_alf1*q.1^2*(1+q.1)^2/4 + _alf2*q.2*(2*q.2^2 + 3*q.2 + 1)/6 + _alf3*q.3*(1+q.3)/2 + q.4) -> 397127.8231 | I160: =(mGn-mG)/mGn*100 -> 0
A161: z. | C161: Substitution Z | D161: =k+kappa+P+Q -> 6 | F161: (21b2)
A162: U. | C162: Substitution U | D162: =2^z./etaqk^2*(P^2+3/2*(P-Q)+P*(1-kq)+4*kappa*B*(1-Q)/(3-2*kq) + (k-1)*(P+2*Q-4*pi/2^(1/4)*(P-Q)*(1-kq))) -> 3168.448577 | F162: (21b1)
A163: fi. | C163: fi Selbstkopplungsterm im Grundzustand als Bestandteil von F | D163: =_NN4*n.p^2/(1+n.p^2)*(n.sigma+q.4)/(SQRT(1+n.sigma^2))*(2^(1/4)-4*B*U./WN.0) +P*(P-2)^2*(1+kappa*(1-kq)/(2*theta*alfa))*(pi/ebn)^2*SQRT(_eta12)*(q.2-q.1) -(P+1)*Q..3/alfa -> -93.14904646 | F163: (21a) | G163: - | H163: -
A164: mFn | B164: mH | C164: F Massenanteil, der durch ni und Qi bewirkt wird | D164: =2*n.n*q.1*(1 + 3*(n.n+q.1+n.n*q.1) + 2*(n.n^2+q.1^2))*_NN1 + 6*n.m*q.2*(1+n.m+q.2)*_NN2 + 2*n.p*q.3*_NN3 + fi.*deltaN -> 1203567.849 | F164: (5c) geändert, (5e) | G164: (IX - 3) | H164: =2*n.1*q.1*(1 + 3*(n.1+q.1+n.1*q.1) + 2*(n.1^2+q.1^2))*_alf1 + 6*n.2*q.2*(1+n.2+q.2)*2/3*_alf2 + 2*n.3*q.3*2*_alf3 -> 248456.2667 | I164: =(mFn-mH)/mFn*100 -> 79.35668796
A165: mFin | B165: Fi | C165: Fi Masseanteil aus Feldmassen | D165: =P*(-1)^(P+Q)*(P+Q)*_NN5 + Q*(P+1)*_NN6 -> 921.6579163 | F165: (5d) geändert | G165: (IX - 4) | H165: =3*P/(pi*SQRT(etaqk))*(1-alfm/alfp)*(P+Q)*(-1)^(P+Q) * (1-alfa/3+pi/2*(k-1)*3^(1-kq/2)) * (1+2*k*kappa/(3*eta^2)*xi*(1+xi^2*(P-Q)*(pi^2-kq))) / (1+4*xi/k*IF(P<2,0,COMBIN(P,2))*(xi/6)^kq) *(2*SQRT(_eta11*etaqk)+kq*eta^2*(k-1)) * (1+(4*pi*alfa)/(eta*SQRT(eta)) )*(1+Q*(1-kappa)*(2-k)*n.1/q.1) + 4*(1-alfm/alfp)*alfa/(xi*xi)*(P+Q) + 4*kq*alfm/alfp -> 46.83268146 | I165: =(mFin-Fi)/mFin*100 -> 94.91864816
B166: fik | C166: fik Neutrinomassen (nur Feldmassen bei leerer Gerüststruktur) | F166: - | G166: (IX - 4 ohne letzen Term) | H166: =Fi - 4*kq*alfm/alfp -> 43.2835956
C168: Summe: (S+G+F+Fi) | D168: =mSn+mGn+mFn+mFin -> 1620038.759 | G168: Summe: (K+G+H+Fi) | H168: =mK + mG + mH -> 644392.1118 | I168: =kgh / (mK + mG + mH) *100 -> 100 | J168: [%] of kgh
C170: Kurzform der Massengleichung (nur 1982):
A171: - | B171: kgh | C171: kgh = K + G + H | D171: - | F171: - (nicht genannt) | G171: (IX - 1-3 mit Ki = ni + Qi) | H171: =4*(_alf1*k.1^2*(1+k.1)^2/4 + _alf2*k.2*(2*k.2^2 + 3*k.2 + 1)/6 + _alf3*k.3*(1+k.3)/2 + k.4) -> 644392.1118
C173: Masse
A174: mass89 | C174: m = amu * fakMeV *( alfp * (S+G+F+Fi) + 4*q*alfm) | D174: =fakMeV*amu*(alfpn*(mSn + mGn + mFn + mFin) + 4*kq*alfmn) -> 3761.273348 | E174: [MeV] (4) geändert | G174: (XII) | H174: =amu*fakMeV*alfp*(kgh + Fi) -> 1496.201574 | I174: =(mass89-H174)/mass89*100 -> 60.22087641
C175: Zum Vergleich: empirischer Mittelwert | D175: =INDEX(TableEmpCODATA2014,D16,1) -> 0 | E175: =INDEX(Table1,D16,2) -> o-- (1982) | F175: =INDEX(TableEmpCODATA2014,D16,3) -> 0 | H175: aus Tabelle 1b_a
C176: Abweichung zu 1982 | D176: =(1-D175/H174) * 100 -> 100 | E176: [%] | H176: =(1-H174/D175)*100 -> 
C177: Abs. Abweichung zum empirischen Messwert | D177: =ABS((1-D175/D174) * 100) -> 100
C178: Anmerkung:
C179: Anregungen können sich auch in einer Änderung des Drehimpulses äußern, so dass sich Q additiv um gerade Zahlen 2z erhöht,
C180: da Q ein Ausdruck für den Drehimpuls ist. Jedoch ist z(N) noch unbekannt.
C182: Lebensdauern der Grundzustände (nur 1989b)
C183: Geometrisch ist dies eine zeitartige Begrenzung in der Koordinate x4 des R4
A185: beta0 | C185: Sustitution beta0 | D185: =2*alfa/(pi*ebn)*((1-SQRT(eta))/(1+SQRT(eta)))^2 -> 1.081170442e-08 | F185: (21a)
A186: D | C186: Substitution D | D186: =eta*beta0/(3*SQRT(2))*(1-SQRT(eta))^4*P^(2+eps*qx)*IF(AND(P=1,kq^2-kq=0), 1,(P-1)^((kq-1)*kq/2)) / (1+4*kq^2*(kq-1)*(2*kq+1)) -> 3.948899247e-20 | F186: (21h) Case für P=1, q=0;1
A187: b.2 | C187: Substitution b.2 | D187: =B*(5*B+3)+(2*H-3)/(P+1)+cs^k*(B*(3*B+2*(H+1))+H+1/2)*(1-kq) -Q*(B*(2*(B+H)-1)+H/2+3)+kappa*kq*(B*(3*B+1)-5/2)*(k-Q) -P..2*P^2*(P+Q)^2*(8*B+1-(5*B-(2*H+1)*(1+2*P..3-Q)+2)*kq) -P..2*H*(1-kq)-(B-3/4)^2*(P-1)*(P-2)*(P-3)*(-1)^(k-1) +(Q-kq)*(1-kq+B*kq)*(3*(H+B)+pi*ebn/eta-kq/4)*(P+1)^3*(k-1) +kappa*((-1)^(1-kq)*(7*H*B+3*(H+B)-5/2)+(1-kq)*(H*(3*B-4)+B+7/2))*(k-1) +Q*P..2*((2-kq)*(1+eps*qx)*(B/2*(H+2)+3/4)+5/2*H*B+3*H -(B+5)/(P+1))-5/2*H^2*P..3*(kq*(1+pi/3*(2-kq)*_eta22)*B-(2-kq)*(1-kq)) -> -3055100.54 | E187: ? | F187: (21f)
A188: b.1 | C188: Substitutution b.1 | D188: =(P*(7+6*(1-kq)*(cs-P..2)-2*kq*(1-P..2))+kappa*Q*((3*z.-1)*B+1))*(2-k) +1/2*(1-kappa)*((kq-eps*qx-2)*Q+eps*cs*P+2*(P+1) -(1-kq)*P*(P-3)/(1+P*(P^2-1))*(4*B-6+P))*(k-1)-P..3*(kq-eps*qx) -> -2 | F188: (21e)
A189: s. | C189: Substitution s | D189: =2 - k + eps*cs + (2*k*Q-kappa*P) + Q..3 + 1/k*(P-1)*(P-2)*(P-3) -> 2 | F189: (21d)
A190: F | C190: Substitution F | D190: =IF(P=3,-D,1-1/3*(1-kq)*(P-1)^2*(3-P)*(1+P-Q-eps*cs*P/2)*(1+beta0*(-1)^k)-P..3*(1+D)) -> -3.948899247e-20 | F190: (21c) Case für P=3, Excel rechnet falsch für P=3
A191: y. | C191: Substitution y | D191: =F*(fi. + (-1)^s.*(1+fi.)*(b.1 + b.2/WN.0)) -> -2.628339341e-16 | F191: (21a)
C192: Existenzzeit | D192: =192*(hq*2*pi)*H*y.*fakMeV*deltaN / (_c^2*mass89*(_eta22*(1-SQRT(eta))^2*(1-SQRT(_eta11))^2*(1-SQRT(_eta12))^2)*(H+n.n+n.m+n.p+n.sigma) *(n.n+ABS(n.m)+ABS(n.p)*beta0)) -> -4.643168537e-26 | E192: [s] | F192: (21)
C193: Zum Vergleich: empirischer Mittelwert | D193: =INDEX(TableEmpTimes,D16,1) -> 0 | E193: =INDEX(Table1,D16,2) -> o-- (1982) | F193: =INDEX(TableEmpTimes,D16,3) -> 0 | H193: aus Tabelle 1b_c
C194: Abs. Abweichung zum empirischen Messwert | D194: =ABS((1-D193/D192) * 100) -> 100 | E194: [%]
C196: Möglichkeit der zusätzlichen externen Anregung prüfen (von N abhängig) (nur 1989)
C198: Errechnet wird, ob mehr als 0 zusätzliche Protosimplexe im Externbereich erzeugt werden können.
A200: Lsigma | C200: L Limit (Vollbesetzung des Externbereiches mit Anzahl Protosimplexe) | D200: =(_NN3*(n.p + q.3) - 2*q.4 )/2 -> 41.46971992 | F200: (9d)
C201: KB (Bandbreite möglicher Externfeldanregungen des Anregungszustands) | D201: =Lsigma -n.sigma -> 34.46971992 | F201: (14e)
C202: =IF(D201>0,"","==> Diese Resonanz ist nicht zusätzlich extern anregbar") -> 
C204: Überschreiten der Resonanzgrenze überprüfen (von N abhängig)
C206: Gesucht wird die maximal mögliche Anregung Nmax=L(N) (Limit der Anregungen).
C207: Gesucht wird dazu der maximal möglichen Anstieg alf1(L1+Q1)**3 für die Zentralzone.
C208: Daraus ergeben sich für diese Maximalbesetzung L1 die Protosimplexmengen Li der anderen Zonen.
C209: Diese können nicht überschritten werden.
C211: Die Anzahl der Protosimplexe (kgh+Fi) des Grundzustandes musste hier aus Rechengründen aus Tabelle 1d entnommen werden.
C212: Sie ist daher nicht an die aktuell ausgewählten geometrischen Naturkonstanten angepasst.
H213: 1982: | I213: Differenz in %
A214: kghfig89 | B214: kghfig | C214: (S + G + F + Fi) für den Grundzustand | D214: =INDEX(Table1d,D16,1) -> 1619647.416 | G214: (K + G + H + Fi) | H214: =INDEX(Table1c,D16,1) -> 660739.8206
A215: L.189 | B215: L.1 | C215: L1 Limit (Zentralzone) | D215: =INT(( (P+1) *(kghfig89 + 1*4*kq*alfmn/alfpn)/(2*_alf1))^(1/3) -q.1) -> 126 | F215: (9a) geändert | G215: (XXXIII) substituiert mit M0 und G=k+1 | H215: =INT( ( ( (2*(P+1))^(2-k)* (k+1) ) / (4*_alf1)* (kghfig))^(1/3) - q.1) -> 56 | I215: =(L.189-L.1)/L.189*100 -> 55.55555556
C217: Überführen von (15a) in die Normalform x**3 + a1x**2 + a2*x + a3 = 0 | F217: (9b1) | G217: (XXXIV)
C218: mit x = (L2 + Q2)
A219: a.1 | B219: a.1 | C219: a1 = 1.5 | D219: 1.5 | H219: 1.5
A220: a.2 | B220: a.2 | C220: a2 = 0.5 | D220: 0.5 | H220: 0.5
A221: a.389 | B221: a.3 | C221: a3 = -3*alf1/alf2 * (L1 + Q1)**3 | D221: =-3*_alf1/_alf2 * (L.189 + q.1)^3 -> -8179132.965 | H221: =-3*_alf1/_alf2 * (L.1 + q.1)^3 -> -1240804.764
C223: Cardanische Lösung der reduzierten Gleichung mit den Substitutionen q und r
A224: qa | B224: qa | C224: qa = (3*a2 - a1**2) / 9 | D224: =(3*a.2 - a.1^2) / 9 -> -0.08333333333 | H224: =(3*a.2 - a.1^2) / 9 -> -0.08333333333
A225: ra.89 | B225: ra | C225: ra = (9*a1*a2 - 27*a3 - 2*a1*3) / 54 | D225: =(9*a.1*a.2 - 27*a.389 - 2*a.1^3) / 54 -> 4089566.483 | H225: =(9*a.1*a.2 - 27*a.3 - 2*a.1^3) / 54 -> 620402.3819
A226: da.89 | B226: da | C226: da = Sqrt(qa**3 + ra**2) Diskriminante | D226: =SQRT(qa^3 + ra.89^2) -> 4089566.483 | H226: =SQRT(qa^3 + ra^2) -> 620402.3819
C228: Lösung
A229: sa.89 | B229: sa | C229: sa = (ra + da)**(1/3) | D229: =(ra.89 + da.89)^(1/3) -> 201.4817694 | H229: =(ra + da)^(1/3) -> 107.4569437
A230: ta.89 | B230: ta | C230: ta = (ra - da)**(1/3) | D230: =(ra.89 - da.89)^(1/3) -> 0 | H230: =(ra - da)^(1/3) -> 0.0007750981699
A231: L.289 | B231: L.2 | C231: L2 Limit (Internzone) | D231: =INT(sa.89 + ta.89 - a.1/3 - q.2) -> 169 | G231: (XXXIV-1) | H231: =INT(sa + ta - a.1/3 - q.2) -> 75
A232: L.389 | B232: L.3 | C232: L3 Limit (Mesozone) | D232: =INT( SQRT(2*_alf2/_alf3*(L.289 + q.2)^2 + 0.25) - 0.5 - q.3 ) -> 272 | F232: (9c) | G232: (XXXIV-2) | H232: =INT( SQRT(2*_alf2/alf3o*(L.2+q.2)^2 + 0.25) - 0.5 - q.3 ) -> 128
A233: L.489 | B233: L.4 | C233: L4 Limit (Externzone) | D233: =INT( _alf3*(L.389 + q.3) - q.4 ) -> 293 | F233: (9d) | G233: (XXXIV-3) | H233: =INT( alf3o*(L.3 + q.3) - q.4 ) -> 147 | I233: =(L.489-L.4)/L.489*100 -> 49.82935154
A236: temp189 | B236: temp1 | C236: temp1 = W (N=0) = W (L1, L2, L3, L4) | D236: =(_alf1*(L.189 + q.1)^3 + _alf2*(L.289 + q.2)^2 + _alf3*(L.389 + q.3) + EXP((1-2*k)*(L.489 + q.4)/(3*q.4)) ) / WN.0 - 1 -> 75.58118812 | G236: (XXXV) | H236: =(_alf1*(L.1+q.1)^3 + _alf2*(L.2+q.2)^2 + alf3o*(L.3+q.3) + EXP((1-2*k)*(L.4+q.4)/(3*q.4)) ) / wgx - 1 -> 22.47201852
B237: temp2 | C237: temp2 (Schalter, = 0 bei Elektron, = 1 sonst) nur 1982 | H237: =1 - Q*(2 - k)*(1 - kappa) -> 1
C238: f(N) | D238: =1*( ag*N/(N + 2) + bg*SQRT(N * (N - 2)) ) -> 0 | G238: (XXV) | H238: =temp2*( agx*N/(N + 2) + bgx*SQRT(N * (N - 2)) ) -> 0
C239: Resonanzordnung zugelassen solange f(N) > W(N=0) | D239: =IF(D238>temp189,"Diese Resonanz ist nicht mehr zugelassen!","zugelassen") -> zugelassen | H239: =IF(fn>temp1,"Dieser Wert ist zu hoch!","") -> 
C242: Masse der Neutrinos (reine Feldmasse bei leerer Gerüststruktur Ki = 0)
C243: Ein Teilchen ohne weitere Strukturelemente besitzt intern eine euklidische Metrik.
C244: Mit leerer Gerüststruktur gilt dann ni = -Qi für die Protosimplexbesetzungen in allen Zonen.
C245: In diesem Fall wird S + G + F = 0 und die ponderable Masse verschwindet. | G245: K+G+H =0
C246: Es bleibt jedoch ein Anteil der Feldmasse Fi bestehen, der als Neutrino interpretierbar ist.
C247: Auch fi bleibt > 0.
... 9 more rows

Sheet Tabellen
B3: Table 1a: Quantenzahlen der Elementarteilchen | M3: Tabelle 1b: Empirische Werte | P3: Tabelle 1c: | Q3: Tabelle 1d: | S3: Tabelle 2: Werte für die Feinstrukturkonstante | AA3: Tabelle 1b_a: Empirische Werte (MeV) | AD3: Tabelle 1b_b: Empirische Werte Existenzzeiten (s)
B4: (in den Multipletts) | M4: PDG 2004 | P4: 1982 | Q4: 1989 | AA4: CODATA2014/Wikipedia | AD4: Wikipedia
B5: # | C5: Name | D5: k | E5: P | F5: Q | G5: kappa | H5: x | I5: qx | J5: Cs | K5: Le | M5: Mittelwert | N5: Abweichung | P5: kgh+Fi (N=0) | Q5: kgh+Fi (N=0) | S5: # | T5: Source | U5: Alpha | V5: Beta | W5: 1/Alpha | X5: 1/Beta | AA5: Mittelwert | AB5: Abweichung | AD5: Mittelwert | AE5: Abweichung
B6: 1 | C6: eta Meson | D6: 1 | E6: 0 | F6: 0 | G6: 0 | H6: 1 | I6: 0 | J6: 0 | K6: 2488 | M6: 547.75 | N6: 0.12 | P6: 236372 | Q6: 236369.0661 | S6: 1 | T6: Heim 1982 von Seite 1 | U6: =Konstante!C32 -> 0.007297354598 | V6: =Konstante!C31 -> 0.999973374 | W6: =1/U6 -> 137.035961 | X6: 1.000026627 | AA6: 547.853 | AB6: (24) | AC6: Wiki | AD6: 5e-19 | AE6: (3) | AF6: Wiki | AG6: https://en.wikipedia.org/wiki/Meson
B7: 2 | C7: K+ K-Meson | D7: 1 | E7: 1 | F7: 0 | G7: 1 | H7: 1 | I7: 1 | J7: 1 | K7: 6630 | M7: 493.677 | N7: 0.016 | P7: 212629.8356 | Q7: 212641.7594 | S7: 2 | T7: Sch 1982 | U7: 0.007297351072 | V7: 0.9999858902 | W7: 137.0360272 | X7: 1.00001411 | AA7: 493.677 | AB7: (169 | AC7: Wiki | AD7: 1.238e-08 | AE7: (21) | AF7: Wiki | AG7: https://en.wikipedia.org/wiki/Meson
B8: 3 | C8: K0 K-Meson | D8: 1 | E8: 1 | F8: 0 | G8: 1 | H8: 2 | I8: 0 | J8: 1 | K8: 7052 | M8: 497.648 | N8: 0.022 | P8: 214348.8418 | Q8: 214370.1083 | S8: 3 | T8: CODATA 98 | U8: 0.007297352536 | V8: 0.9999858902 | W8: 137.0359997 | X8: 1.00001411 | AA8: 497.614 | AC8: Wiki | AD8: n.a.
B9: 4 | C9: e0 | D9: 1 | E9: 1 | F9: 1 | G9: 0 | H9: 1 | I9: 0 | J9: 0 | K9: 0 | P9: 214.3152988 | Q9: 222.3154708 | S9: 4 | T9: GPROG | U9: 0.007297352533 | V9: 0.9999858902 | W9: 137.0359998 | X9: 1.00001411
B10: 5 | C10: e- Elektron | D10: 1 | E10: 1 | F10: 1 | G10: 0 | H10: 2 | I10: -1 | J10: 0 | K10: 0 | M10: 0.51099892 | N10: 4e-08 | P10: 216.0754725 | Q10: 218.3154661 | S10: 5 | T10: Heim 1989 von Seite 1 | U10: =Konstante!E32 -> 0.007297350415 | V10: =Konstante!E31 -> 0.999973374 | W10: 137.0360395 | X10: 1.000026627 | AA10: 0.5109989461 | AB10: (31) | AC10: CODATA 2014
B11: 6 | C11: my Muon | D11: 1 | E11: 1 | F11: 1 | G11: 1 | H11: 1 | I11: -1 | J11: 0 | K11: 3252 | M11: 105.658369 | N11: 9e-05 | P11: 45507.64568 | Q11: 45505.93811 | S11: 6 | T11: CODATA 2014 | U11: 0.007297352566 | V11: =SQRT(1/2*(1+SQRT(1-4*U11^2))) -> 0.9999733726 | W11: 137.0359991 | X11: 1.000026628 | AA11: 105.6583745 | AB11: (24) | AC11: CODATA 2014 | AD11: 2.1969811e-06 | AE11: (22) | AF11: Wiki | AG11: https://en.wikipedia.org/wiki/Muon
B12: 7 | C12: pi+- Pion/pi-Meson | D12: 1 | E12: 2 | F12: 0 | G12: 0 | H12: 1 | I12: 1 | J12: 0 | K12: 2578 | M12: 134.9766 | N12: 0.0006 | P12: 58128.6288 | Q12: 60110.55064 | AA12: 139.57018 | AB12: (35) | AC12: Wiki | AD12: 2.6033e-08 | AE12: (5) | AF12: Wiki | AG12: https://en.wikipedia.org/wiki/Meson
B13: 8 | C13: pi0 Pion/pi-Meson | D13: 1 | E13: 2 | F13: 0 | G13: 0 | H13: 2 | I13: 0 | J13: 0 | K13: 973 | M13: 139.57018 | N13: 0.00035 | P13: 60111.70248 | Q13: 58127.50999 | AA13: 134.9766 | AB13: (6) | AC13: Wiki | AD13: 8.4e-17 | AE13: (6) | AF13: Wiki | AG13: https://en.wikipedia.org/wiki/Meson | AH13: Bem.: je nach Wiki-Quelle schwankt die Lebenszeit geringfügig.
B14: 9 | C14: Lambda Λ-Baryon | D14: 2 | E14: 0 | F14: 1 | G14: 0 | H14: 1 | I14: 0 | J14: -1 | K14: 1095 | M14: 1115.683 | N14: 0.006 | P14: 480490.7616 | Q14: 480490.5871 | S14: Tabelle 3: Werte für Gravitationskonstante Gamma | AA14: 1115.683 | AB14: 0.006 | AC14: Wiki | AD14: 2.632e-10 | AE14: 0.02 | AF14: Wiki | AG14: https://de.wikipedia.org/wiki/%CE%9B-Baryon | AH14: Bem.: die englische Variante hat eine leicht andere Existenzzeit (2,631 ...)
B15: 10 | C15: om- Ω-Baryon/Hyperon | D15: 2 | E15: 0 | F15: 3 | G15: 0 | H15: 1 | I15: -1 | J15: -3 | K15: 2357 | M15: 1672.45 | N15: 0.29 | P15: 720226.0387 | Q15: 720206.8074 | AA15: 1672.45 | AB15: (29) | AC15: Wiki | AD15: 8.21e-11 | AE15: (11) | AF15: Wiki | AG15: https://en.wikipedia.org/wiki/Omega_baryon
B16: 11 | C16: p proton | D16: 2 | E16: 1 | F16: 1 | G16: 0 | H16: 1 | I16: 1 | J16: 0 | K16: 351 | M16: 938.27203 | N16: 8e-05 | P16: 404114.552 | Q16: 404116.7765 | S16: # | T16: Name | U16: Value | V16: Comment | AA16: 938.2720813 | AB16: (58) | AC16: CODATA 2014
B17: 12 | C17: n neutron | D17: 2 | E17: 1 | F17: 1 | G17: 0 | H17: 2 | I17: 0 | J17: 0 | K17: 386 | M17: 939.56536 | N17: 8e-05 | P17: 404675.6995 | Q17: 404675.6533 | S17: 1 | T17: Schulz 1982, Heim1989a,b | U17: 6.6732e-11 | V17: 1982 und 1989 benutzter Wert. | AA17: 939.5654133 | AB17: (58) | AC17: CODATA 2014 | AD17: 881.5 | AE17: (15) | AF17: Wiki | AG17: https://en.wikipedia.org/wiki/Neutron
B18: 13 | C18: xi0 Ξ-Baryon | D18: 2 | E18: 1 | F18: 1 | G18: 1 | H18: 1 | I18: 0 | J18: -2 | K18: 6476 | M18: 1314.82 | N18: 0.2 | P18: 566280.1215 | Q18: 566330.3372 | S18: 2 | T18: Theorie W. Droescher 2000 | U18: 6.672308e-11 | V18: Dieser Wert war 1982 unbekannt. | AA18: 1314.86 | AB18: 0.2 | AC18: Wiki | AD18: 2.9e-10 | AE18: 0.09 | AF18: Wiki | AG18: https://de.wikipedia.org/wiki/%CE%9E-Baryon
B19: 14 | C19: xi- Ξ-Baryon | D19: 2 | E19: 1 | F19: 1 | G19: 1 | H19: 2 | I19: -1 | J19: -2 | K19: 7145 | M19: 1321.31 | N19: 0.13 | P19: 569085.1434 | Q19: 569081.3879 | S19: 3 | T19: Theorie W. Droescher 2002 | U19: 6.6733198e-11 | V19: Ergebnis des 8-dimensionalen Heim space, 1982 unbekannt. | AA19: 1321.71 | AB19: 0.07 | AC19: Wiki | AD19: 1.639e-10 | AE19: 0.015 | AF19: Wiki | AG19: https://de.wikipedia.org/wiki/%CE%9E-Baryon
B20: 15 | C20: sig+ Sigma baryon | D20: 2 | E20: 2 | F20: 1 | G20: 0 | H20: 1 | I20: 1 | J20: -1 | K20: 1005 | M20: 1189.37 | N20: 0.06 | P20: 511375.2138 | Q20: 512263.5901 | S20: 4 | T20: Messung 2003 | U20: 6.6739e-11 | V20: Dieser Wert war 1982 unbekannt. | AA20: 1189.37 | AB20: 0.07 | AC20: Wiki | AD20: 8.018e-11 | AE20: 0.026 | AF20: Wiki | AG20: https://en.wikipedia.org/wiki/Sigma_baryon
B21: 16 | C21: sig0 Sigma baryon | D21: 2 | E21: 2 | F21: 1 | G21: 0 | H21: 2 | I21: 0 | J21: -1 | K21: 1109 | M21: 1192.642 | N21: 0.024 | P21: 513584.3618 | Q21: 513602.0086 | S21: 5 | T21: CODATA 1998 | U21: 6.673e-11 | V21: Dieser Wert war 1982 unbekannt. | AA21: 1192.642 | AB21: 0.024 | AC21: Wiki | AD21: 7.4e-20 | AE21: 0.7 | AF21: Wiki | AG21: https://en.wikipedia.org/wiki/Sigma_baryon
B22: 17 | C22: sig- Sigma baryon | D22: 2 | E22: 2 | F22: 1 | G22: 0 | H22: 3 | I22: -1 | J22: -1 | K22: 1001 | M22: 1197.449 | N22: 0.03 | P22: 515672.8403 | Q22: 515679.1974 | S22: 6 | T22: CODATA 2001 upper limit | U22: 6.67512e-11 | V22: Dieser Wert war 1982 unbekannt. | AA22: 1197.449 | AB22: 0.03 | AC22: Wiki | AD22: 1.479e-10 | AE22: 0.011 | AF22: Wiki
B23: 18 | C23: o++ | D23: 2 | E23: 3 | F23: 3 | G23: 0 | H23: 1 | I23: 2 | J23: 0 | P23: 522422.2261 | Q23: 531016.4064 | S23: 7 | T23: CODATA 2001 lower limit | U23: 6.67332e-11 | V23: Dieser Wert war 1982 unbekannt.
B24: 19 | C24: o+ | D24: 2 | E24: 3 | F24: 3 | G24: 0 | H24: 2 | I24: 1 | J24: 0 | P24: 524912.4096 | Q24: 531746.6847 | S24: 8 | T24: (leer) | U24: (hier Wert eingeben) | V24: (Beschreibung)
B25: 20 | C25: o0 | D25: 2 | E25: 3 | F25: 3 | G25: 0 | H25: 3 | I25: 0 | J25: 0 | P25: 526088.9052 | Q25: 531384.6272 | S25: 9 | T25: Heim Theory Group 2003 | U25: 6.6733082e-11 | V25: Dieser Wert war 1982 unbekannt.
B26: 21 | C26: o- | D26: 2 | E26: 3 | F26: 3 | G26: 0 | H26: 4 | I26: -1 | J26: 0 | P26: 536790.7284 | Q26: 529759.2068 | S26: 10 | T26: Leovinus 2006 | U26: 6.67279915e-11 | V26: Optimiert für Berechnung des Elektrons.
B27: 22 | C27: o-- (1982) | D27: 2 | E27: 3 | F27: 1 | G27: 0 | H27: 4 | I27: -2 | J27: 0 | K27: 860 | M27: 1672.45 | N27: 0.29 | P27: 660739.8206 | Q27: 1619647.416 | S27: 11 | T27: CODATA 2014 | U27: 6.67408e-11 | V27: (Beschreibung)
B28: 23 | C28: o- (1982) | D28: 2 | E28: 3 | F28: 1 | G28: 0 | H28: 3 | I28: -1 | J28: 0 | K28: 933 | P28: 659396.8682 | Q28: 1582375.241
B29: 24 | C29: o0 (1982) | D29: 2 | E29: 3 | F29: 1 | G29: 0 | H29: 2 | I29: 0 | J29: 0 | K29: 1023 | P29: 667215.7983 | Q29: 1683192.711
B30: 25 | C30: o+ (1982) | D30: 2 | E30: 3 | F30: 1 | G30: 0 | H30: 1 | I30: 1 | J30: 0 | K30: 927 | P30: 663264.9661 | Q30: 1662674.533 | S30: Tabelle 4: Werte für die Lichtgeschwindigkeit c
B31: 26 | C31: delt++ Δ-Baryon | D31: 2 | E31: 3 | F31: 3 | G31: 0 | H31: 1 | I31: 2 | J31: 0 | K31: 1147 | P31: 522467.3022 | Q31: 531016.4064 | AA31: 1232 | AB31: 2 | AC31: Wiki | AD31: 5.63e-24 | AE31: 0.14 | AF31: Wiki | AG31: https://en.wikipedia.org/wiki/Delta_baryon
B32: 27 | C32: delt+ Δ-Baryon | D32: 2 | E32: 3 | F32: 3 | G32: 0 | H32: 2 | I32: 1 | J32: 0 | K32: 1229 | P32: 524946.0226 | Q32: 531746.6847 | S32: # | T32: Name | U32: Value | AA32: 1232 | AB32: 2 | AC32: Wiki | AD32: 5.63e-24 | AE32: 0.14 | AF32: Wiki | AG32: https://en.wikipedia.org/wiki/Delta_baryon
B33: 28 | C33: delt Δ-Baryon | D33: 2 | E33: 3 | F33: 3 | G33: 0 | H33: 3 | I33: 0 | J33: 0 | K33: 1361 | P33: 526100.0211 | Q33: 531384.6272 | S33: 1 | T33: Berechnet aus µ0 und e0 | U33: =Konstante!E70 -> 299792465.3 | AA33: 1232 | AB33: 2 | AC33: Wiki | AD33: 5.63e-24 | AE33: 0.14 | AF33: Wiki | AG33: https://en.wikipedia.org/wiki/Delta_baryon
B34: 29 | C34: delt-Δ-Baryon | D34: 2 | E34: 3 | F34: 3 | G34: 0 | H34: 4 | I34: -1 | J34: 0 | K34: 1227 | P34: 536824.3415 | Q34: 529759.2068 | S34: 2 | T34: Schulz 1982 | U34: 299792458 | AA34: 1232 | AB34: 2 | AC34: Wiki | AD34: 5.63e-24 | AE34: 0.14 | AF34: Wiki | AG34: https://en.wikipedia.org/wiki/Delta_baryon
B35: 30 | C35: x13++++ | D35: 2 | E35: 4 | F35: 1 | G35: 0 | H35: 1 | I35: 4 | J35: 3 | Q35: 17445839.83 | S35: 3 | T35: Heim 1989a | U35: 299792500
B36: 31 | C36: x13+++ | D36: 2 | E36: 4 | F36: 1 | G36: 0 | H36: 2 | I36: 3 | J36: 3 | Q36: 17219649.33 | S36: 4 | T36: Heim 1989b | U36: 299792458
B37: 32 | C37: x13++ | D37: 2 | E37: 4 | F37: 1 | G37: 0 | H37: 3 | I37: 2 | J37: 3 | Q37: 17111303.29 | S37: 5 | T37: CODATA 2014 | U37: 299792458
B38: 33 | C38: x13+ | D38: 2 | E38: 4 | F38: 1 | G38: 0 | H38: 4 | I38: 1 | J38: 3 | Q38: 17743844.64
B39: 34 | C39: x13 | D39: 2 | E39: 4 | F39: 1 | G39: 0 | H39: 5 | I39: 0 | J39: 3 | Q39: 17412728.86
B40: 35 | C40: neutrino1 | D40: 1 | E40: 0 | F40: 1 | G40: 0 | I40: 0 | J40: 1 | S40: Tabelle 5: Werte für den Vakuumwellenwiderstand Rg
B41: 36 | C41: neutrino2 | D41: 1 | E41: 1 | F41: 1 | G41: 0 | I41: 0 | J41: 1 | M41: Quelle:
B42: 37 | C42: neutrino3 | D42: 1 | E42: 2 | F42: 0 | G42: 0 | I42: 0 | J42: 1 | M42: http://pdg.lbl.gov/2005/mcdata/mass_width_2004.csv | S42: # | T42: Name | U42: Value
B43: 38 | C43: neutrino4 | D43: 2 | E43: 1 | F43: 1 | G43: 0 | I43: 0 | J43: 1 | S43: 1 | T43: Berechnet aus µ0 und e0 | U43: =Konstante!E71 -> 376.7303043
B44: 39 | C44: neutrino5 | D44: 2 | E44: 1 | F44: 1 | G44: 1 | I44: 0 | J44: 1 | S44: 2 | T44: Schulz 1982 | U44: 376.7303766
S45: 3 | T45: Heim 1989a | U45: 376.72482
A46: # | B46: Multiplettnummer bei Heim [3] | S46: 4 | T46: Heim 1989b | U46: 376.7303766
A47: Name | B47: Name | S47: 5 | T47: CODATA 1998 | U47: 376.7303135
A48: k | B48: Konfiguration (1 = Meson, 2 = Baryon) | S48: 6 | T48: CODATA 2014 | U48: 376.7303135
A49: P | B49: P = 2 * Isospin
A50: Q | B50: Q = 2 * Spin
A51: kappa | B51: Doublettziffer | S51: Tabelle 6: Werte für Massenelement my (µ)
A52: x | B52: Spielart des Multipletts
A53: qx | B53: Ladung (wird errechnet) | S53: # | T53: Name | U53: Value
A54: Cs | B54: Strangeness (wird errechnet) | S54: 1 | T54: Berechnet auf Seite 1 | U54: =Konstante!E85 -> 2.258942033e-31
A55: Le | B55: Excitation limit (wird errechnet) | S55: 2 | T55: Heim 1989a | U55: 2.25902741e-31
S56: 3 | T56: Heim 1989b | U56: 2.25902134e-31
B57: Die Partikel Delta (22…25) sind in der Formel 1989 verboten. | S57: 4 | T57: (leer) | U57: (hier Wert eingeben)
B58: Die o-Partikel besaßen in der Formel von 1982 Q=1.
B59: Das Multiplett x13 ist 1989 wegen (19a) verboten.
S60: Tabelle 7: Werte für Plancksches Wirkungsquant hq
A61: Quellen:
A62: Quantenzahlen: [4] | S62: # | T62: Name | U62: Value
S63: 1 | T63: Schulz 1982 | U63: 1.054571596e-34
S64: 2 | T64: Heim 1989a | U64: 1.0545919e-34
S65: 3 | T65: Heim 1989b | U65: 1.0545887e-34
S66: 4 | T66: CODATA 2014 | U66: 1.0545718e-34
S69: Tabelle 8: Werte für Faktor [kgMev]
S71: # | T71: Name | U71: Value
S72: 1 | T72: Schulz 1982 | U72: 5.6095892e+29
S73: 2 | T73: Heim 1989a | U73: 5.609537e+29
S74: 3 | T74: Heim 1989b | U74: 5.609545e+29
S75: 4 | T75: (leer) | U75: (hier Wert eingeben)
S78: Tabelle 9: Numerische Korrektur des Exhaustions-Verfahrens
S80: # | T80: Name | U80: OffsetN3 für o++ | V80: OffsetK
S81: 1 | T81: Mazzone 2009 | U81: 0.05081395 | V81: 1e-09
S82: 2 | T82: Keine Korrektur | U82: 0 | V82: 0
S83: 3 | T83: (leer) | U83: (hier Wert eingeben) | V83: 0
S84: 4 | T84: (leer) | U84: (hier Wert eingeben) | V84: 0
S86: Tabelle 10: Wert für die Induktionskonstante µ0 (Blatt "Konstante")
S88: # | T88: Name | U88: Value
S89: 1 | T89: Heim Formel | U89: 1.256637e-06
S90: 2 | T90: exakte Formel (4*PI() 10^-7) | U90: =4*PI()/10^7 -> 1.256637061e-06
S91: 3
S92: 4 | T92: (leer) | U92: (hier Wert eingeben)
S94: Tabelle 11: Wert für die Influenz- (elektrische) konstante e0 (Blatt "Konstante")
S96: # | T96: Name | U96: Value
S97: 1 | T97: Heim Formel | U97: 8.854187817e-12
S98: 2 | T98: exakte Formel (1/(µ0 c^2)) | U98: =1/(U90*U37^2) -> 8.854187818e-12
S99: 3
S100: 4 | T100: (leer) | U100: (hier Wert eingeben)

Sheet Vergleich
A1: Vergleich
A2: Name | B2: Mass (calculated) | C2: Mass (empirical) | D2: Source | E2: Deviation (%) | F2: Lifetime (calculated) | G2: Lifetime (empirical) | H2: Source | I2: Deviation (%)
A3: =Elementarteilchen!E175 -> o-- (1982) | B3: =Elementarteilchen!D174 -> 3761.273348 | C3: =Elementarteilchen!D175 -> 0 | D3: =Elementarteilchen!F175 -> 0 | E3: =Elementarteilchen!D177 -> 100 | F3: =Elementarteilchen!D192 -> -4.643168537e-26 | G3: =Elementarteilchen!D193 -> 0 | H3: =Elementarteilchen!F193 -> 0 | I3: =Elementarteilchen!D194 -> 100
A5: eta Meson | B5: 548.7811426 | C5: 547.853 | D5: Wiki | E5: 0.1691280089 | F5: 2.338240582e-19 | G5: 5e-19 | H5: Wiki | I5: 113.8359944
A6: K+ K-Meson | B6: 493.6972651 | C6: 493.677 | D6: Wiki | E6: 0.004104765509 | F6: 1.237122114e-08 | G6: 1.238e-08 | H6: Wiki | I6: 0.0709619792
A7: K0 K-Meson | B7: 497.7058754 | C7: 497.614 | D7: Wiki | E7: 0.01845978647 | F7: - | G7: - | H7: - | I7: -
A8: e0 | B8: 0.5161527335 | C8: - | D8: - | E8: - | F8: - | G8: - | H8: - | I8: -
A9: e- Elektron | B9: 0.5109858461 | C9: 0.5109989461 | D9: CODATA 2014 | E9: 0.002563679515 | F9: - | G9: - | H9: - | I9: -
A10: my Muon | B10: 105.6558498 | C10: 105.6583745 | D10: CODATA 2014 | E10: 0.00238955495 | F10: 2.199466009e-06 | G10: 2.1969811e-06 | H10: Wiki | I10: 0.1129778092
A11: pi+- Pion/pi-Meson | B11: 139.5635691 | C11: 139.57018 | D11: Wiki | E11: 0.004736823066 | F11: 2.602878932e-08 | G11: 2.6033e-08 | H11: Wiki | I11: 0.01617699644
A12: pi0 Pion/pi-Meson | B12: 134.9553978 | C12: 134.9766 | D12: Wiki | E12: 0.01571050367 | F12: 8.401800542e-17 | G12: 8.4e-17 | H12: Wiki | I12: 0.02143043539
A13: Lambda Λ-Baryon | B13: 1115.561261 | C13: 1115.683 | D13: Wiki | E13: 0.01091283194 | F13: 2.578040272e-10 | G13: 2.632e-10 | H13: Wiki | I13: 2.093052165
A14: om- Ω-Baryon | B14: 1672.117655 | C14: 1672.45 | D14: Wiki | E14: 0.01987570016 | F14: 1.317669829e-10 | G14: 8.21e-11 | H14: Wiki | I14: 37.69304101
A15: p Proton | B15: 938.2473089 | C15: 938.2720813 | D15: CODATA 2014 | E15: 0.002640287911 | F15: - | G15: - | I15: -
A16: n Neutron | B16: 939.5407405 | C16: 939.5654133 | D16: CODATA 2014 | E16: 0.002626050588 | F16: - | G16: - | I16: -
A17: xi0 Ξ-Baryon/Hyperon | B17: 1314.856528 | C17: 1314.86 | D17: Wiki | E17: 0.0002640845317 | F17: 2.962003581e-10 | G17: 2.9e-10 | H17: Wiki | I17: 2.093298653
A18: xi- Ξ-Baryon/Hyperon | B18: 1321.247798 | C18: 1321.71 | D18: Wiki | E18: 0.0349822384 | F18: 1.653083473e-10 | G18: 1.639e-10 | H18: Wiki | I18: 0.8519517297
A19: sig+ Sigma baryon/Hyperon | B19: 1189.333176 | C19: 1189.37 | D19: Wiki | E19: 0.003096174384 | F19: 8.007296367e-11 | G19: 8.018e-11 | H19: Wiki | I19: 0.1336735003
A20: sig0 Sigma baryon/Hyperon | B20: 1192.43648 | C20: 1192.642 | D20: Wiki | E20: 0.01723532634 | F20: 4.290884921e-15 | G20: 7.4e-20 | H20: Wiki | I20: 99.99827541
A21: sig- Sigma baryon/Hyperon | B21: 1197.263236 | C21: 1197.449 | D21: Wiki | E21: 0.01551570711 | F21: 1.481755469e-10 | G21: 1.479e-10 | H21: Wiki | I21: 0.1859597406
A22: o++ | B22: 1234.438412 | C22: - | D22: - | E22: - | F22: - | G22: - | H22: - | I22: -
A23: o+ | B23: 1234.567331 | C23: - | D23: - | E23: - | F23: - | G23: - | H23: - | I23: -
A24: o0 | B24: 1233.722618 | C24: - | D24: - | E24: - | F24: - | G24: - | H24: - | I24: -
A25: o- | B25: 1229.952978 | C25: - | D25: - | E25: - | F25: - | G25: - | H25: - | I25: -
A26: o-- (1982) | B26: 3761.273348 | C26: - | D26: - | E26: - | F26: - | G26: - | H26: - | I26: -
A27: o- (1982) | B27: 3673.825348 | C27: - | D27: - | E27: - | F27: - | G27: - | H27: - | I27: -
A28: o0 (1982) | B28: 3907.890462 | C28: - | D28: - | E28: - | F28: - | G28: - | H28: - | I28: -
A29: o+ (1982) | B29: 3860.257262 | C29: - | D29: - | E29: - | F29: - | G29: - | H29: - | I29: -
A30: delt++ Δ-Baryon | B30: 1234.438412 | C30: 1232 | D30: Wiki | E30: 0.1975320906 | F30: 3.685321562e-24 | G30: 5.63e-24 | H30: Wiki | I30: 52.76821589
A31: delt+ Δ-Baryon | B31: 1234.567331 | C31: 1232 | D31: Wiki | E31: 0.207953924 | F31: 5.483093493e-24 | G31: 5.63e-24 | H31: Wiki | I31: 2.679263206
A32: delt Δ-Baryon | B32: 1233.722618 | C32: 1232 | D32: Wiki | E32: 0.1396276258 | F32: 4.956724371e-24 | G32: 5.63e-24 | H32: Wiki | I32: 13.58307581
A33: delt- Δ-Baryon | B33: 1229.952978 | C33: 1232 | D33: Wiki | E33: 0.1664309193 | F33: 6.400950049e-24 | G33: 5.63e-24 | H33: Wiki | I33: 12.0443066
A34: x13++++ | B34: 40504.25027 | C34: - | D34: - | E34: - | F34: - | G34: - | H34: - | I34: -
A35: x13+++ | B35: 39979.09671 | C35: - | D35: - | E35: - | F35: - | G35: - | H35: - | I35: -
A36: x13++ | B36: 39728.49116 | C36: - | D36: - | E36: - | F36: - | G36: - | H36: - | I36: -
A37: x13+ | B37: 41196.11958 | C37: - | D37: - | E37: - | F37: - | G37: - | H37: - | I37: -
A38: x13 | B38: 40427.35961 | C38: - | D38: - | E38: - | F38: - | G38: - | H38: - | I38: -
A39: neutrino1
A40: neutrino2
A41: neutrino3
A42: neutrino4
A43: neutrino5

Sheet Changelog
A1: Datum | B1: Version | C1: Changes
A3: 2010-03-18 | B3: 0.3 | C3: Erste publizierte Version auf www.engon.de/protosimplex
A4: 2010-02-24 | B4: 0.27 | C4: Korrigiert: C (14b1), added neutrinos, da.89
C5: 1989 nach Gl (19a) verbotene Teilchen nachgetragen, die 1982 berechnet wurden
C6: exp() ersetzt durch ebn^(), um Einfluss der numerischen Eingangsgrößen testen zu können
A7: 2009-11-22 | B7: 0.2 | C7: Erste Version basierend auf dem "Excel Heim 1982 mass calculator" v0.68.
C8: Darstellung der mesonischen Neutrinomassen als Feldmassen bei leerer Gerüststruktur.
C9: Die Beta-Neutrinos aus dem von k unabhängigen Term in Fi sind noch nicht dargestellt.
C10: Empirische Vergleichswerte aus http://pdg.lbl.gov/2005/mcdata/mass_width_2004.csv.
C11: Quantenzahlensätze aus Heim 1989b übernommen.
C13: Numerische Korrektur entfernt (aufrunden bei Ki > x.99), weil diese für das Neutron (N=4) einen Fehler erzeugt.
C16: "Es gibt keine Massenformel, es gibt keine Theorie.
C17: Die Zahlenwerte sind schlicht und einfach erfunden und zudem falsch."
C19: Professor Dr. Norbert Dragon
C20: Institut für Theoretische Physik
C21: Appelstraße 2
C22: D-30167 Hannover
C23: am Mi 13 Apr. 2005 11:36 in de.sci.physik "Erweiterte QFT von Burkhart Heim"

Sheet Koeffizientenmatrix Aik 1982
A1: 3. Koeffizientenmatrix A(ik) 1982
A3: Geometrische Skalierungsfaktoren für die Wirkungen der von den Quantenzahlen adressierten multidimensionalen Spins
A4: in den in der rechten Spalte genannten Gleichungen (nur 1982).
A5: Die Faktoren enthalten die geometrischen Konstanten pi, ebn, xi und eta sowie die Feinstrukturkonstante (alfa, beta).
A7: =(pi*ebn*xi*xi)^2 *(1 - 4*pi*alfa^2) / (2 * eta^2) -> 254.8339332 | B7: =2*pi*ebn*xi^2 * (theta / 8 - pi*ebn*eta*alfa^2/3) / 3 -> 14.79069029 | C7: =3*(4+eta*alfa) * (1 - eta^2/5*((1 - SQRT(eta))/ (1 +SQRT(eta)))^2) -> 12.021658 | D7: =(1+3*eta/(4*xi)*(2*eta*alfa - ebn^2*xi*((1 - SQRT(eta)) / (1 +SQRT(eta)))^2)) / alfa -> 137.9398266 | E7: =ebn^2 * (1 - 2*ebn*alfa^2/eta) / 3 -> 2.462298435 | F7: =(pi*ebn)^2 * (1 + alfa/(5*eta)*(1 + 6*alfa/pi)) -> 73.03607009 | G7: für w1 (Strukturpotenz Mesonen)
A8: =2*(ebn*alfa/(2*eta))^2 * (1 - alfa/(2*xi^2)) -> 0.0002004576529 | B8: =xi*(1 - xi*(alfa*xi/(eta^2))^2) / 12 -> 0.1348045009 | C8: =(eta^2 + 6*xi*alfa^2) / ebn -> 0.3607412792 | D8: =2*xi^2 / (3*eta) -> 1.763004299 | E8: =xi*(pi*ebn)^2 * (1 - beta^2) -> 0.006283912612 | F8: =2*(1 - pi/2*(ebn*xi*alfa)^2 * SQRT(eta))/(ebn*xi^2) -> 0.280582415 | G8: für w2 (Strukturpotenz Baryonen)
A9: =(pi*ebn*alfa)^2 * (1 - (pi*ebn)^2*(1 - beta^2)) -> 0.003868382653 | B9: =xi^2 * (1 + (2*ebn*alfa/eta)^2) / 6 -> 0.4370397146 | C9: =(pi*ebn*alfa*xi)^2 *(1 - 2*pi*(ebn*xi)^2*(1 - beta^2)) -> 0.01010123262 | D9: =eta*SQRT(2*pi*eta) -> 2.469084252 | E9: =3*alfa/(ebn*xi^2) -> 0.003076215965 | F9: =1 / (1 - pi*ebn*(xi*ebn)^2*(1 - beta^2)) -> 1.008875647 | G9: für w2
A10: =(xi*(2 + (xi*alfa)^2 ) - 2*beta) / (2*beta - alfa) -> 0.6204537604 | B10: =pi*xi^2*eta*(beta - 3*alfa) / 2 -> 3.981995547 | C10: =xi / 2 -> 0.8090169944 | D10: =2 *eta^2 / xi^2 -> 0.7487141062 | E10: =(3*beta - alfa) / (6*xi) -> 0.3082570974 | F10: =pi*ebn/(xi*eta) - ebn*eta^2*alfa/2 -> 5.321492809 | G10: für avx (Resonanzbasis)
A11: =(2*alfa + 1)^2 -> 1.029402416 | B11: =6*alfa / eta^2 -> 0.04467404521 | C11: =(xi/eta)^3 -> 4.365871712 | D11: =alfa*(beta - alfa) * SQRT(3/2) -> 0.008871937827 | E11: =xi^3 -> 4.236067977 | F11: =(xi/eta)^4 -> 7.135558323 | G11: für avx, bvx
A12: =pi*xi*(2*beta - alfa) / (12*beta) -> 0.8441093723 | B12: =pi^2*(beta - 2*alfa) / 12 -> 0.8104414694 | C12: =SQRT(eta) / 9 -> 0.1105535813 | D12: =pi / (3*eta) -> 1.057786373 | E12: =pi / (3*xi) -> 0.6472036796 | F12: =xi*eta -> 1.601836887 | G12: für bvx (Resonanzraster)
A14: Legende:
B15: Diese Terme reagieren sehr stark auf Ungenauigkeiten der Feinstrukturkonstante, da sie den Ausdruck
B16: (1-beta^2) enthalten.
B17: Auf der nächsten Seite kann ein Wert der Feinstrukturkonstante als Berechnungsbasis ausgewählt werden!
A19: Anmerkung: Andere Formel für A11 in [3]
